bitfinex/quotes_SOLUSD_20250529
["timestamp","ask_amount","ask_price","bid_price","bid_amount"]
[1748539737853,1.5171,168.49,168.45,21.58972222]
[1748539738054,1.5171,168.49,168.46,21.58972222]
[1748539739453,5.9354226,168.48,168.45,21.58972222]
[1748539739977,5.9354226,168.48,168.46,21.58972222]
[1748539740683,5.9354226,168.48,168.47,21.58972222]
[1748539741388,5.9354226,168.48,168.46,21.58972222]
[1748539743984,5.9354226,168.48,168.47,21.58972222]
[1748539744185,1.5171,168.49,168.47,21.58972222]
[1748539744359,7.45226986,168.49,168.43,39.40432314]
[1748539744564,7.45226986,168.49,168.45,21.58972222]
[1748539744764,7.45226986,168.49,168.39,29.3]
[1748539744765,21.58972222,168.46,168.39,29.3]
[1748539744967,23.16772222,168.42,168.38,21.58972222]
[1748539746196,27.52761189,168.41,168.37,31.38972222]
[1748539746398,5.93788967,168.41,168.37,31.38972222]
[1748539747506,27.52761189,168.41,168.37,9.8]
[1748539747683,21.58972222,168.4,168.37,9.8]
[1748539747876,42.97788967,168.41,168.37,9.8]
[1748539748077,5.93859492,168.39,168.37,9.8]
[1748539749772,42.97797224,168.41,168.37,9.8]
[1748539749974,21.58972222,168.39,168.34,21.58972222]
[1748539750178,21.58972222,168.38,168.33,21.58972222]
[1748539750390,21.58972222,168.37,168.32,21.58972222]
[1748539750895,23.12852222,168.36,168.32,18.64964886]
[1748539751098,21.58972222,168.35,168.31,9.8]
[1748539751404,21.58972222,168.34,168.31,9.8]
[1748539751590,21.58972222,168.33,168.31,9.8]
[1748539751775,5.94087115,168.33,168.31,9.8]
[1748539752397,27.53018558,168.34,168.31,9.8]
[1748539752601,5.94046336,168.34,168.31,9.8]
[1748539752974,27.53018558,168.34,168.31,9.8]
[1748539753179,21.58972222,168.33,168.29,8.33333333]
[1748539753482,21.58972222,168.33,168.29,29.92305555]
[1748539753680,5.94106463,168.32,168.29,8.33333333]
[1748539754105,5.94000594,168.35,168.3,21.58972222]
[1748539754406,21.58972222,168.34,168.3,21.58972222]
[1748539755698,27.53014693,168.34,168.3,21.58972222]
[1748539755897,5.94042471,168.34,168.3,21.58972222]
[1748539756672,5.94006891,168.35,168.31,21.58972222]
[1748539756875,27.52979113,168.35,168.31,21.58972222]
[1748539757097,5.94006891,168.35,168.32,21.58972222]
[1748539758074,5.94006891,168.35,168.31,21.58972222]
[1748539758689,5.94006891,168.35,168.32,21.58972222]
[1748539759792,5.94006891,168.35,168.31,21.58972222]
[1748539760585,21.58972222,168.33,168.29,29.92305555]
[1748539761595,20.79008376,168.35,168.29,29.92305555]
[1748539761792,21.58972222,168.34,168.3,21.58972222]
[1748539762205,21.58972222,168.32,168.29,8.33333333]
[1748539762504,5.94141762,168.31,168.29,8.33333333]
[1748539762700,5.94141762,168.31,168.29,29.92305555]
[1748539762897,21.58972222,168.33,168.29,29.92305555]
[1748539762898,5.94119273,168.32,168.29,29.92305555]
[1748539763624,5.94119273,168.32,168.29,8.33333333]
[1748539763625,27.53091495,168.32,168.29,8.33333333]
[1748539764192,23.23152222,168.31,168.29,8.33333333]
[1748539764608,5.94177064,168.3,168.29,8.33333333]
[1748539766695,7.5833488,168.31,168.29,8.33333333]
[1748539767195,21.58972222,168.3,168.29,8.33333333]
[1748539767919,29.17307102,168.31,168.29,8.33333333]
[1748539768910,7.5833488,168.31,168.29,8.33333333]
[1748539769214,29.17307102,168.31,168.27,21.58972222]
[1748539769429,29.17307102,168.31,168.26,40.23937108]
[1748539769629,21.58972222,168.3,168.25,40.23937108]
[1748539770289,21.58972222,168.3,168.26,21.58972222]
[1748539770691,29.17307102,168.31,168.26,21.58972222]
[1748539771425,29.17307102,168.31,168.27,21.58972222]
[1748539772738,7.5833488,168.31,168.27,21.58972222]
[1748539773027,29.17307102,168.31,168.27,21.58972222]
[1748539773518,29.17307102,168.31,168.26,21.58972222]
[1748539774221,26.0,168.28,168.26,21.58972222]
[1748539774926,26.0,168.28,168.25,18.64964886]
[1748539774927,26.0,168.28,168.27,21.58972222]
[1748539775599,5.94235567,168.29,168.27,21.58972222]
[1748539776327,5.94235567,168.29,168.26,21.58972222]
[1748539778531,5.94235567,168.29,168.23,39.1]
[1748539778733,21.58972222,168.27,168.23,39.1]
[1748539779333,21.58972222,168.27,168.23,60.68972222]
[1748539779922,5.94318316,168.26,168.23,60.68972222]
[1748539780129,5.94318316,168.26,168.23,9.8]
[1748539780443,5.94318316,168.26,168.23,31.38972222]
[1748539782439,47.58972222,168.3,168.25,21.58972222]
[1748539782747,42.98212371,168.29,168.26,21.58972222]
[1748539782922,11.84,168.27,168.26,21.58972222]
[1748539783445,42.98212371,168.29,168.26,21.58972222]
[1748539786235,42.98212371,168.29,168.25,21.58972222]
[1748539786643,64.57184593,168.29,168.25,21.58972222]
[1748539787323,21.58972222,168.28,168.24,21.58972222]
[1748539787529,79.42715521,168.29,168.25,21.58972222]
[1748539788559,42.98212371,168.29,168.26,21.58972222]
[1748539789860,42.98212371,168.29,168.26,40.23937108]
[1748539791235,42.98212371,168.29,168.26,21.58972222]
[1748539795344,42.98212371,168.29,168.26,18.64964886]
[1748539797068,42.98212371,168.29,168.26,21.58972222]
[1748539797235,5.94201174,168.3,168.26,21.58972222]
[1748539797433,42.86201174,168.3,168.28,21.58972222]
[1748539797831,42.86201174,168.3,168.27,21.58972222]
[1748539798328,57.71643835,168.3,168.23,28.93613357]
[1748539798535,7.58333274,168.31,168.28,21.58972222]
[1748539798767,44.48333274,168.31,168.28,21.58972222]
[1748539799064,1.6418,168.31,168.29,21.58972222]
[1748539799434,7.58327881,168.31,168.29,21.58972222]
[1748539799638,7.58327881,168.31,168.3,21.58972222]
[1748539801473,7.49463562,168.35,168.31,18.64964886]
[1748539801660,21.58972222,168.32,168.26,29.3]
[1748539801864,58.50972222,168.31,168.27,18.64964886]
[1748539802052,36.92,168.31,168.28,21.58972222]
[1748539802251,36.92,168.31,168.3,40.23937108]
[1748539802452,26.0,168.34,168.31,18.64964886]
[1748539802642,62.96,168.34,168.32,21.58972222]
[1748539802968,7.49463562,168.35,168.32,21.58972222]
[1748539802969,33.49463562,168.35,168.32,21.58972222]
[1748539803147,70.45463562,168.35,168.32,21.58972222]
[1748539803539,70.45463562,168.35,168.31,21.58972222]
[1748539803767,44.45463562,168.35,168.31,21.58972222]
[1748539803947,44.45463562,168.35,168.32,21.58972222]
[1748539804345,7.49463562,168.35,168.32,21.58972222]
[1748539804649,44.43463562,168.35,168.32,21.58972222]
[1748539805670,66.02435784,168.35,168.3,18.64964886]
[1748539805882,66.02435784,168.35,168.3,40.23937108]
[1748539806456,66.02435784,168.35,168.28,21.58972222]
[1748539806457,21.58972222,168.33,168.28,21.58972222]
[1748539806656,36.94,168.32,168.29,18.64964886]
[1748539807666,1.5545,168.35,168.32,24.59046723]
[1748539807872,7.57185602,168.39,168.34,21.58972222]
[1748539808040,7.57185602,168.39,168.37,21.58972222]
[1748539808361,7.57185602,168.39,168.36,21.58972222]
[1748539808665,7.57185602,168.39,168.35,21.58972222]
[1748539808875,44.00806556,168.39,168.34,21.58972222]
[1748539809241,44.00806556,168.39,168.33,18.64964886]
[1748539809554,44.00806556,168.39,168.34,40.23937108]
[1748539809755,44.00806556,168.39,168.35,21.58972222]
[1748539810271,44.00806556,168.39,168.37,21.58972222]
[1748539810272,44.59185602,168.39,168.37,21.58972222]
[1748539810963,44.59185602,168.39,168.36,21.58972222]
[1748539811363,44.59185602,168.39,168.37,21.58972222]
[1748539811674,44.59185602,168.39,168.36,21.58972222]
[1748539812149,66.18157824,168.39,168.35,18.64964886]
[1748539812346,44.59185602,168.39,168.35,18.64964886]
[1748539812655,44.59185602,168.39,168.37,21.58972222]
[1748539813470,44.59185602,168.39,168.36,21.58972222]
[1748539813650,66.18157824,168.39,168.34,21.58972222]
[1748539813857,21.58972222,168.38,168.34,18.64964886]
[1748539814376,21.58972222,168.38,168.33,21.58972222]
[1748539814784,21.58972222,168.37,168.33,18.64964886]
[1748539814975,58.58972222,168.36,168.31,21.58972222]
[1748539815156,58.58972222,168.36,168.32,18.64964886]
[1748539815357,37.0,168.36,168.32,40.23937108]
[1748539815550,5.94000594,168.35,168.32,40.23937108]
[1748539816969,5.94000594,168.35,168.32,18.64964886]
[1748539817168,5.94000594,168.35,168.32,40.23937108]
[1748539818710,21.58972222,168.34,168.3,9.76]
[1748539819002,5.94106463,168.32,168.3,9.76]
[1748539819169,5.94106463,168.32,168.3,31.34972222]
[1748539819370,5.94106463,168.32,168.31,18.64964886]
[1748539819845,5.94106463,168.32,168.3,9.76]
[1748539819979,22.40802622,168.32,168.28,40.23937108]
[1748539820189,43.99774844,168.32,168.28,40.23937108]
[1748539820390,7.55536463,168.32,168.29,18.64964886]
[1748539820576,29.14508685,168.32,168.29,18.64964886]
[1748539821200,29.14508685,168.32,168.28,21.58972222]
[1748539821375,43.99774844,168.32,168.25,114.82]
[1748539821577,21.58972222,168.29,168.26,18.64964886]
[1748539821889,36.96,168.29,168.26,40.23937108]
[1748539822200,36.96,168.29,168.27,21.58972222]
[1748539822380,36.96,168.29,168.26,21.58972222]
[1748539822774,36.96,168.29,168.25,40.23937108]
[1748539823377,36.96,168.29,168.27,21.58972222]
[1748539823593,5.9412082,168.32,168.28,40.23937108]
[1748539823921,36.96,168.33,168.31,21.58972222]
[1748539824106,42.90079088,168.33,168.27,0.28432314]
[1748539824306,64.4905131,168.33,168.3,18.64964886]
[1748539824607,79.34229234,168.33,168.29,18.64964886]
[1748539824791,79.34229234,168.33,168.28,21.58972222]
[1748539825000,21.58972222,168.32,168.28,21.58972222]
[1748539825512,5.94141762,168.31,168.28,21.58972222]
[1748539825902,5.94141762,168.31,168.27,40.23937108]
[1748539826211,5.94141762,168.31,168.28,18.64964886]
[1748539826405,5.94141762,168.31,168.28,21.58972222]
[1748539826787,73.40150146,168.33,168.3,21.58972222]
[1748539826788,5.94119789,168.32,168.3,21.58972222]
[1748539826983,5.94119789,168.32,168.31,40.23937108]
[1748539827212,5.94082236,168.33,168.32,18.64964886]
[1748539827418,5.94035879,168.34,168.32,18.64964886]
[1748539828395,5.94011351,168.35,168.32,18.64964886]
[1748539828618,5.94011351,168.35,168.33,18.64964886]
[1748539828918,44.44157558,168.36,168.32,21.58972222]
[1748539829128,21.58972222,168.35,168.31,40.23937108]
[1748539829705,5.94035879,168.34,168.31,40.23937108]
[1748539830020,5.87766405,168.34,168.31,40.23937108]
[1748539831715,5.94000594,168.35,168.31,40.23937108]
[1748539831918,5.94000594,168.35,168.32,21.58972222]
[1748539832221,5.94000594,168.35,168.31,40.23937108]
[1748539832623,5.94000594,168.35,168.32,21.58972222]
[1748539833624,5.94000594,168.35,168.31,40.23937108]
[1748539833811,27.52972816,168.35,168.31,40.23937108]
[1748539834625,27.52972816,168.35,168.31,18.64964886]
[1748539834857,27.52972816,168.35,168.31,40.23937108]
[1748539835530,5.94000594,168.35,168.31,40.23937108]
[1748539836529,5.94000594,168.35,168.32,21.58972222]
[1748539840615,44.40155102,168.36,168.33,21.58972222]
[1748539840811,7.48155102,168.36,168.33,21.58972222]
[1748539845521,7.48155102,168.36,168.34,18.64964886]
[1748539845920,1.5418,168.36,168.34,21.58972222]
[1748539846438,23.16502222,168.4,168.35,40.23937108]
[1748539846618,5.93870912,168.39,168.36,40.23937108]
[1748539846821,1.5753,168.4,168.38,21.58972222]
[1748539847020,7.51359387,168.4,168.37,21.58972222]
[1748539847223,7.51359387,168.4,168.37,18.64964886]
[1748539847418,29.10331609,168.4,168.37,18.64964886]
[1748539848627,44.35359387,168.4,168.37,18.64964886]
[1748539848811,44.35359387,168.4,168.38,18.64964886]
[1748539849014,7.51359387,168.4,168.38,18.64964886]
[1748539849427,5.9375371,168.42,168.4,18.64964886]
[1748539849634,5.9375371,168.42,168.4,40.23937108]
[1748539851242,5.9375371,168.42,168.38,18.933972]
[1748539851418,5.9375371,168.42,168.4,21.58972222]
[1748539851615,12.89037917,168.44,168.41,21.58972222]
[1748539851832,1.5005,168.44,168.43,18.64964886]
[1748539852843,7.4373321,168.44,168.43,18.64964886]
[1748539854340,7.4373321,168.44,168.39,18.79181043]
[1748539854731,7.4373321,168.44,168.43,18.64964886]
[1748539856163,7.4373321,168.44,168.43,40.23937108]
[1748539857645,5.9368321,168.44,168.43,40.23937108]
[1748539857844,5.93615648,168.46,168.44,18.64964886]
[1748539858146,1.5001,168.48,168.46,18.64964886]
[1748539858147,44.25582109,168.48,168.46,18.64964886]
[1748539858355,1.5001,168.48,168.47,40.23937108]
[1748539858572,5.93401376,168.52,168.48,18.64964886]
[1748539858731,5.93401376,168.52,168.49,21.58972222]
[1748539858935,5.93401376,168.52,168.5,21.58972222]
[1748539859129,5.93401376,168.52,168.51,40.23937108]
[1748539859327,1.5088,168.53,168.51,40.23937108]
[1748539859630,1.5088,168.53,168.52,40.23937108]
[1748539860035,5.93341662,168.54,168.52,40.23937108]
[1748539860328,5.93341662,168.54,168.53,21.58972222]
[1748539860526,5.93341662,168.54,168.53,18.64964886]
[1748539861262,42.79299506,168.55,168.54,18.64964886]
[1748539861429,5.93299506,168.55,168.54,40.23937108]
[1748539861830,5.93299506,168.55,168.54,18.64964886]
[1748539862428,5.93299506,168.55,168.5,18.933972]
[1748539862633,27.52271728,168.55,168.51,18.64964886]
[1748539862856,21.58972222,168.53,168.5,18.64964886]
[1748539863054,36.86,168.52,168.48,40.23937108]
[1748539863258,36.86,168.52,168.48,18.64964886]
[1748539863458,36.86,168.52,168.5,18.64964886]
[1748539864465,36.86,168.52,168.5,21.58972222]
[1748539864828,5.93436591,168.51,168.49,40.23937108]
[1748539865633,5.93436591,168.51,168.46,9.76]
[1748539865836,23.14532222,168.5,168.47,18.64964886]
[1748539866341,36.88,168.49,168.47,18.64964886]
[1748539866872,5.9354226,168.48,168.47,18.64964886]
[1748539867072,5.9354226,168.48,168.46,9.76]
[1748539867243,27.52514482,168.48,168.46,9.76]
[1748539867558,5.9354226,168.48,168.45,40.23937108]
[1748539867758,5.9354226,168.48,168.45,18.64964886]
[1748539867958,27.52514482,168.48,168.44,40.23937108]
[1748539868167,42.36370132,168.48,168.44,40.23937108]
[1748539868335,5.9354226,168.48,168.44,40.23937108]
[1748539868536,5.9354226,168.48,168.46,18.64964886]
[1748539870160,5.9354226,168.48,168.46,21.58972222]
[1748539870359,5.9354226,168.48,168.45,18.64964886]
[1748539870565,27.52514482,168.48,168.44,18.933972]
[1748539870861,42.36370132,168.48,168.44,18.933972]
[1748539871052,42.36370132,168.48,168.44,18.64964886]
[1748539871256,21.58972222,168.45,168.42,18.64964886]
[1748539871463,58.62972222,168.46,168.42,40.23937108]
[1748539871656,37.04,168.46,168.42,40.23937108]
[1748539871974,37.04,168.46,168.45,18.64964886]
[1748539872668,37.04,168.46,168.43,21.58972222]
[1748539872866,58.62972222,168.46,168.44,18.64964886]
[1748539873065,5.93647966,168.45,168.44,18.64964886]
[1748539874989,5.93600785,168.47,168.45,18.64964886]
[1748539875191,5.93600785,168.47,168.45,40.23937108]
[1748539875367,5.93600785,168.47,168.46,40.23937108]
[1748539875689,5.93600785,168.47,168.46,18.64964886]
[1748539876198,5.93600785,168.47,168.42,29.44216157]
[1748539876199,1.508,168.46,168.42,29.3]
[1748539876400,21.58972222,168.43,168.36,21.58972222]
[1748539876580,21.58972222,168.4,168.36,29.3]
[1748539876772,37.04,168.42,168.37,18.933972]
[1748539876773,21.58972222,168.41,168.37,18.933972]
[1748539876998,21.58972222,168.41,168.36,50.88972222]
[1748539877188,5.93824228,168.4,168.37,18.933972]
[1748539877380,5.93824228,168.4,168.37,18.64964886]
[1748539877581,5.93824228,168.4,168.37,40.23937108]
[1748539878077,27.5279645,168.4,168.37,18.64964886]
[1748539879304,5.93824228,168.4,168.37,18.64964886]
[1748539879785,5.93824228,168.4,168.37,40.23937108]
[1748539880381,5.93824228,168.4,168.39,18.64964886]
[1748539880971,5.93824228,168.4,168.37,40.23937108]
[1748539881176,37.04,168.42,168.4,18.64964886]
[1748539881475,42.97765295,168.42,168.4,18.64964886]
[1748539881675,5.93765295,168.42,168.4,18.64964886]
[1748539882193,27.52737517,168.42,168.38,40.23937108]
[1748539882390,27.52737517,168.42,168.38,18.64964886]
[1748539882705,27.52737517,168.42,168.38,40.23937108]
[1748539883080,5.93765295,168.42,168.38,40.23937108]
[1748539883275,5.93765295,168.42,168.4,18.64964886]
[1748539885299,1.508,168.46,168.42,18.64964886]
[1748539885519,7.44423774,168.46,168.44,18.64964886]
[1748539885800,1.508,168.46,168.45,40.23937108]
[1748539886723,5.93550505,168.48,168.45,40.23937108]
[1748539887029,1.6411,168.5,168.45,40.23937108]
[1748539887030,5.93518235,168.49,168.47,21.58972222]
[1748539887576,5.93518235,168.49,168.46,21.58972222]
[1748539890379,5.93518235,168.49,168.47,40.23937108]
[1748539890798,5.93518235,168.49,168.47,18.64964886]
[1748539892184,5.93518235,168.49,168.47,21.58972222]
[1748539892892,5.93518235,168.49,168.46,21.58972222]
[1748539893197,5.93518235,168.49,168.47,21.58972222]
[1748539893407,5.93518235,168.49,168.48,21.58972222]
[1748539894100,1.6411,168.5,168.49,18.64964886]
[1748539894295,63.0,168.52,168.49,40.23937108]
[1748539894498,23.25082222,168.54,168.51,21.58972222]
[1748539894499,5.93366166,168.53,168.51,21.58972222]
[1748539894714,42.93366166,168.53,168.51,21.58972222]
[1748539894935,42.93366166,168.53,168.5,21.58972222]
[1748539897317,5.93366166,168.53,168.51,21.58972222]
[1748539899924,7.59454643,168.54,168.51,21.58972222]
[1748539900103,44.57454643,168.54,168.51,21.58972222]
[1748539900622,44.57454643,168.54,168.52,18.64964886]
[1748539901230,7.59454643,168.54,168.52,18.64964886]
[1748539901396,44.57454643,168.54,168.52,18.64964886]
[1748539901820,7.59454643,168.54,168.52,18.64964886]
[1748539902028,1.6611,168.54,168.52,18.64964886]
[1748539902327,44.55451664,168.54,168.52,21.58972222]
[1748539903494,7.59451664,168.54,168.52,21.58972222]
[1748539904497,7.59451664,168.54,168.5,0.28432314]
[1748539904498,1.6611,168.54,168.53,40.23937108]
[1748539904702,36.94,168.55,168.53,40.23937108]
[1748539904933,42.87295365,168.56,168.53,40.23937108]
[1748539905100,5.93295365,168.56,168.53,40.23937108]
[1748539905300,42.85295365,168.56,168.53,40.23937108]
[1748539905723,1.6452,168.58,168.55,21.58972222]
[1748539905915,1.6452,168.58,168.56,21.58972222]
[1748539906098,7.5771731,168.58,168.55,21.58972222]
[1748539906504,7.5771731,168.58,168.54,40.23937108]
[1748539906702,44.5171731,168.58,168.54,40.23937108]
[1748539907220,21.58972222,168.55,168.49,40.23937108]
[1748539907526,58.52972222,168.54,168.49,18.64964886]
[1748539907729,27.52338388,168.53,168.49,18.64964886]
[1748539907923,21.58972222,168.51,168.49,18.64964886]
[1748539908228,58.56972222,168.51,168.49,18.64964886]
[1748539908908,36.98,168.51,168.49,18.64964886]
[1748539909114,58.56972222,168.51,168.49,18.64964886]
[1748539909308,58.56972222,168.51,168.48,9.8]
[1748539909511,21.58972222,168.5,168.48,9.8]
[1748539909714,5.93507033,168.49,168.48,28.44964886]
[1748539911923,5.9347181,168.5,168.48,28.44964886]
[1748539912442,5.9347181,168.5,168.48,18.64964886]
[1748539913241,27.52444032,168.5,168.48,18.64964886]
[1748539913448,21.58972222,168.49,168.45,18.64964886]
[1748539913616,21.58972222,168.48,168.45,18.64964886]
[1748539914019,5.93577491,168.47,168.45,18.64964886]
[1748539916351,27.52514482,168.48,168.45,18.64964886]
[1748539917420,5.9354226,168.48,168.45,18.64964886]
[1748539918650,23.13422222,168.46,168.44,9.8]
[1748539918842,1.5445,168.46,168.44,9.8]
[1748539919851,1.5445,168.46,168.45,18.64964886]
[1748539920932,7.48062727,168.46,168.44,9.8]
[1748539921149,23.22502222,168.5,168.45,40.23937108]
[1748539921345,60.18502222,168.5,168.46,21.58972222]
[1748539921536,27.52493016,168.49,168.45,18.64964886]
[1748539921732,21.58972222,168.48,168.45,18.64964886]
[1748539922125,27.52493016,168.49,168.45,18.64964886]
[1748539923260,21.58972222,168.46,168.44,9.8]
[1748539923570,58.52972222,168.47,168.44,9.8]
[1748539923731,36.94,168.47,168.44,9.8]
[1748539923933,58.52972222,168.47,168.44,9.8]
[1748539924128,21.58972222,168.46,168.44,9.8]
[1748539924638,21.58972222,168.46,168.42,40.23937108]
[1748539924847,5.93647966,168.45,168.42,40.23937108]
[1748539925228,27.52620188,168.45,168.42,18.64964886]
[1748539925430,42.36740104,168.45,168.42,18.64964886]
[1748539925758,42.36740104,168.45,168.4,29.44216157]
[1748539925759,23.11002222,168.43,168.4,29.3]
[1748539925949,21.58972222,168.41,168.36,29.3]
[1748539926147,21.58972222,168.39,168.34,39.1]
[1748539926454,36.96,168.41,168.35,18.64964886]
[1748539926657,36.96,168.41,168.34,9.8]
[1748539926658,21.58972222,168.38,168.34,9.8]
[1748539926834,21.58972222,168.36,168.34,9.8]
[1748539927033,5.94000594,168.35,168.34,9.8]
[1748539927434,5.93908592,168.38,168.35,18.64964886]
[1748539927847,27.52880814,168.38,168.35,18.64964886]
[1748539928043,5.93908592,168.38,168.35,18.64964886]
[1748539931363,27.52880814,168.38,168.35,18.64964886]
[1748539931671,21.58972222,168.37,168.34,9.8]
[1748539931877,27.52880814,168.38,168.34,9.8]
[1748539932430,5.93908592,168.38,168.35,40.23937108]
[1748539932740,21.58972222,168.37,168.34,9.8]
[1748539933058,23.22682222,168.36,168.34,9.8]
[1748539933255,29.16658942,168.36,168.34,9.8]
[1748539934137,7.5768672,168.36,168.34,9.8]
[1748539935353,44.01572223,168.36,168.3,18.933972]
[1748539935544,37.0,168.35,168.32,18.64964886]
[1748539936159,37.0,168.35,168.32,40.23937108]
[1748539936770,37.0,168.35,168.33,21.58972222]
[1748539936939,37.0,168.35,168.32,18.64964886]
[1748539937140,37.0,168.35,168.32,40.23937108]
[1748539937346,42.9400667,168.35,168.32,40.23937108]
[1748539937850,37.0,168.35,168.34,21.58972222]
[1748539938052,1.5286,168.41,168.35,18.64964886]
[1748539938241,37.12,168.4,168.36,21.58972222]
[1748539938448,11.84,168.37,168.36,18.933972]
[1748539938664,7.46648967,168.41,168.36,40.52369422]
[1748539938855,7.46648967,168.41,168.4,40.23937108]
[1748539938856,1.5286,168.41,168.4,40.23937108]
[1748539939147,43.07749106,168.43,168.4,40.23937108]
[1748539939362,7.56676292,168.45,168.42,21.58972222]
[1748539939992,1.6302,168.45,168.43,21.58972222]
[1748539940365,7.56669616,168.45,168.43,21.58972222]
[1748539940948,1.6302,168.45,168.43,21.58972222]
[1748539941155,1.6302,168.45,168.44,40.23937108]
[1748539941756,1.5736,168.49,168.45,18.64964886]
[1748539942080,1.5736,168.49,168.48,40.23937108]
[1748539942247,5.93444016,168.51,168.48,40.23937108]
[1748539942451,5.93444016,168.51,168.49,21.58972222]
[1748539943067,1.5736,168.53,168.5,21.58972222]
[1748539943260,38.6736,168.53,168.51,21.58972222]
[1748539943442,38.6736,168.53,168.48,0.28432314]
[1748539943443,1.5736,168.53,168.52,21.58972222]
[1748539943648,7.50726166,168.53,168.52,40.23937108]
[1748539944445,7.50726166,168.53,168.51,18.64964886]
[1748539945045,7.50749054,168.53,168.51,18.64964886]
[1748539945277,7.50749054,168.53,168.51,21.58972222]
[1748539946071,7.50749054,168.53,168.48,18.933972]
[1748539946272,7.50749054,168.53,168.51,21.58972222]
[1748539947387,7.50749054,168.53,168.5,21.58972222]
[1748539947596,7.50749054,168.53,168.51,18.64964886]
[1748539947956,7.50749054,168.53,168.51,21.58972222]
[1748539948176,7.50749054,168.53,168.5,18.64964886]
[1748539948490,7.50749054,168.53,168.51,21.58972222]
[1748539950776,7.50749054,168.53,168.48,0.28432314]
[1748539950978,7.50749054,168.53,168.5,21.58972222]
[1748539951674,7.50749054,168.53,168.51,21.58972222]
[1748539951866,1.5736,168.53,168.52,18.64964886]
[1748539952070,7.50726166,168.53,168.52,40.23937108]
[1748539952275,7.50726166,168.53,168.52,18.64964886]
[1748539952467,7.50726166,168.53,168.5,21.58972222]
[1748539954467,7.50726166,168.53,168.51,40.23937108]
[1748539954885,7.50726166,168.53,168.52,40.23937108]
[1748539955386,5.93342005,168.54,168.53,18.64964886]
[1748539955695,5.93342005,168.54,168.53,40.23937108]
[1748539955872,5.9326056,168.56,168.53,40.23937108]
[1748539956077,7.52027865,168.57,168.56,18.64964886]
[1748539956280,7.52027865,168.57,168.56,40.23937108]
[1748539958181,1.5879,168.57,168.56,40.23937108]
[1748539958500,43.01186739,168.59,168.56,40.23937108]
[1748539958666,43.01186739,168.59,168.57,21.58972222]
[1748539958867,5.93123327,168.6,168.58,21.58972222]
[1748539962178,5.93123327,168.6,168.59,21.58972222]
[1748539962385,5.93123327,168.6,168.57,18.64964886]
[1748539962386,5.93123327,168.6,168.58,21.58972222]
[1748539963600,5.93123327,168.6,168.57,18.64964886]
[1748539963601,5.93123327,168.6,168.56,19.07613357]
[1748539963817,7.43186434,168.61,168.59,21.58972222]
[1748539964188,1.5009,168.61,168.6,40.23937108]
[1748539964521,5.92979127,168.64,168.61,18.64964886]
[1748539964682,5.92979127,168.64,168.63,21.58972222]
[1748539965019,1.526,168.65,168.64,18.64964886]
[1748539965182,5.92919939,168.66,168.64,40.23937108]
[1748539965183,42.98919939,168.66,168.64,40.23937108]
[1748539965573,42.98919939,168.66,168.61,0.14216157]
[1748539965879,42.98919939,168.66,168.64,18.64964886]
[1748539966307,64.57892161,168.66,168.61,21.58972222]
[1748539966616,21.58972222,168.64,168.6,40.23937108]
[1748539966822,58.64972222,168.63,168.6,18.64964886]
[1748539966995,1.6351,168.62,168.6,18.64964886]
[1748539967194,1.6351,168.62,168.6,40.23937108]
[1748539967607,1.6351,168.62,168.6,18.64964886]
[1748539967802,1.6351,168.62,168.6,40.23937108]
[1748539968390,5.93084633,168.61,168.59,9.84]
[1748539968742,37.06,168.6,168.58,18.64964886]
[1748539969292,37.06,168.6,168.57,21.58972222]
[1748539969704,37.06,168.6,168.58,21.58972222]
[1748539969900,37.06,168.6,168.59,40.23937108]
[1748539970109,5.93084633,168.61,168.6,18.64964886]
[1748539970314,7.56571452,168.62,168.6,40.23937108]
[1748539970510,44.64571452,168.62,168.6,40.23937108]
[1748539971005,7.56571452,168.62,168.6,40.23937108]
[1748539971708,7.56571452,168.62,168.61,21.58972222]
[1748539972295,1.6351,168.62,168.61,21.58972222]
[1748539972538,29.15531682,168.62,168.56,29.3]
[1748539972698,22.3918311,168.62,168.56,50.88972222]
[1748539972907,21.58972222,168.61,168.56,29.3]
[1748539973223,37.1,168.6,168.56,50.88972222]
[1748539973591,5.93154991,168.59,168.57,21.58972222]
[1748539974510,5.93084633,168.61,168.58,21.58972222]
[1748539975424,38.7151,168.62,168.57,18.64964886]
[1748539975425,7.56568165,168.62,168.6,21.58972222]
[1748539975935,1.6351,168.62,168.58,0.14216157]
[1748539976133,1.6351,168.62,168.61,21.58972222]
[1748539976639,1.6351,168.62,168.58,0.14216157]
[1748539976835,1.6351,168.62,168.61,40.52369422]
[1748539977018,5.9297056,168.65,168.62,18.64964886]
[1748539977217,43.2697056,168.65,168.62,40.23937108]
[1748539977414,43.2497056,168.65,168.61,0.28432314]
[1748539977643,43.2497056,168.65,168.62,18.64964886]
[1748539977843,43.2497056,168.65,168.61,21.58972222]